lending/lending_fUSD_20251020
["ID","MTS","AMOUNT","RATE_DAILY","PERIOD"]
[391909058,1760975440121,-2499.14990251,0.00033984,2]
[391909059,1760975440132,-2153.39072566,0.00033984,2]
[391909060,1760975440141,-3594.75982321,0.00034,2]
[391909061,1760975440152,-8131.22788333,0.00034,2]
[391909066,1760975444081,-55293.88374508,0.00034,2]
[391909067,1760975444489,-12668.12150626,0.00034,2]
[391909068,1760975444503,-49428.94702122,0.00034,2]
[391909077,1760975446359,-625.12853622,0.00034,2]
[391909078,1760975446370,-538.9432,0.00034,2]
[391909096,1760975524586,1500.0,0.00028813,120]
[391909136,1760976128333,681.50487018,0.00034339,30]
[391909137,1760976197125,3100.16730858,0.00034339,120]
[391909141,1760976221179,1169.05157125,0.00034339,120]
[391909172,1760976632152,-250.0,0.00017,2]
[391909173,1760976632162,-300.0,0.00019,2]
[391909174,1760976632171,-920.07670614,0.00024807,2]
[391909175,1760976632183,-96.31720586,0.00024807,2]
[391909176,1760976632192,-500.0,0.00024932,2]
[391909177,1760976632203,-500.0,0.00024932,2]
[391909178,1760976632214,-500.0,0.00024932,2]
[391909179,1760976632223,-150.0,0.00024932,2]
[391909180,1760976632233,-500.0,0.0002608,2]
[391909181,1760976632243,-597.0,0.00026101,2]
[391909182,1760976632252,-154.0,0.00026102,2]
[391909183,1760976632262,-154.0,0.00026102,2]
[391909184,1760976632272,-154.0,0.00026102,2]
[391909185,1760976632282,-154.0,0.00026102,2]
[391909186,1760976632291,-154.0,0.00026102,2]
[391909187,1760976632302,-154.0,0.00026102,2]
[391909188,1760976632312,-154.0,0.00026102,2]
[391909189,1760976632322,-154.0,0.00026102,2]
[391909190,1760976632332,-154.0,0.00026102,2]
[391909191,1760976632342,-47.48399114,0.00026102,2]
[391909192,1760976632355,-106.51600886,0.00026102,2]
[391909193,1760976632364,-154.0,0.00026102,2]
[391909194,1760976632374,-73.66399119,0.00026102,2]
[391909195,1760976632386,-80.33600881,0.00026102,2]
[391909196,1760976632395,-154.0,0.00026102,2]
[391909201,1760976632570,-153.0,0.00026103,2]
[391909202,1760976632580,-153.0,0.00026103,2]
[391909203,1760976632591,-153.0,0.00026103,2]
[391909204,1760976632601,-153.0,0.00026103,2]
[391909206,1760976632611,-153.0,0.00026103,2]
[391909208,1760976632621,-153.0,0.00026103,2]
[391909210,1760976632631,-153.0,0.00026103,2]
[391909212,1760976632641,-1282.46867882,0.00026103,2]
[391909214,1760976632652,-149.07132118,0.00026103,2]
[391909216,1760976632662,-158.0,0.00026108,2]
[391909218,1760976632671,-158.0,0.00026108,2]
[391909220,1760976632681,-158.0,0.00026108,2]
[391909222,1760976632690,-158.0,0.00026108,2]
[391909224,1760976632700,-158.0,0.00026108,2]
[391909226,1760976632709,-158.0,0.00026108,2]
[391909228,1760976632718,-158.0,0.00026108,2]
[391909230,1760976632728,-158.0,0.00026108,2]
[391909232,1760976632737,-158.0,0.00026108,2]
[391909234,1760976632746,-136.92626103,0.00026108,2]
[391909238,1760976632774,-21.07373897,0.00026108,2]
[391909240,1760976632783,-158.0,0.00026108,2]
[391909241,1760976632792,-158.0,0.00026108,2]
[391909243,1760976632801,-153.0,0.0002611,2]
[391909245,1760976632811,-153.0,0.0002611,2]
[391909247,1760976632819,-153.0,0.0002611,2]
[391909249,1760976632828,-153.0,0.0002611,2]
[391909251,1760976632838,-153.0,0.0002611,2]
[391909253,1760976632849,-14.52626103,0.00026628,2]
[391909255,1760976632860,-943.29775045,0.00026628,2]
[391909267,1760976632960,-42.17598852,0.00026628,2]
[391909269,1760976632970,-326.97700348,0.00027176,2]
[391909281,1760976633072,-730.49751235,0.00027176,2]
[391909283,1760976633082,-397.41852615,0.00027593,2]
[391909285,1760976633091,-23.27356982,0.00029331,2]
[391909304,1760976638100,-452.46790696,0.00029331,2]
[391909306,1760976638110,-500.0,0.00029395,7]
[391909308,1760976638120,-500.0,0.00029918,7]
[391909309,1760976638130,-7861.19,0.00029954,2]
[391909310,1760976638140,-1398.64,0.00030145,120]
[391909311,1760976638150,-500.0,0.0003056,7]
[391909312,1760976638159,-402.23,0.00030969,2]
[391909313,1760976638169,-500.0,0.00031059,2]
[391909314,1760976638178,-500.0,0.00031155,7]
[391909315,1760976638188,-500.0,0.00031189,7]
[391909316,1760976638197,-952.96012302,0.000312,2]
[391909317,1760976638212,-48.03987698,0.000312,2]
[391909318,1760976638222,-500.0,0.00031547,7]
[391909319,1760976638231,-500.0,0.00031557,7]
[391909320,1760976638240,-500.0,0.00031822,7]
[391909321,1760976638250,-154.097,0.00031888,30]
[391909322,1760976638259,-200.0,0.00031888,2]
[391909323,1760976638269,-1093.20277302,0.00031892,2]
[391909324,1760976638281,-3071.36432793,0.00031892,2]
[391909325,1760976638292,-1145.04998115,0.00031892,2]
[391909326,1760976638303,-10324.7029179,0.00031892,2]
[391909327,1760976638313,-500.0,0.00032012,7]
[391909328,1760976638322,-500.0,0.00032015,7]
[391909329,1760976638331,-52.87262053,0.00032055,2]
[391909330,1760976638343,-947.12737947,0.00032055,2]
[391909331,1760976638353,-1345.49,0.00032059,2]
[391909332,1760976638363,-402.23,0.0003213,2]
[391909333,1760976638373,-500.0,0.00032148,7]
[391909334,1760976638383,-500.0,0.00032183,7]
[391909335,1760976638393,-500.0,0.00032186,7]
[391909336,1760976638403,-501.85343949,0.000322,5]
[391909337,1760976638413,-267.54782691,0.0003222,120]
[391909338,1760976638423,-1000.0,0.00032404,2]
[391909339,1760976638432,-500.0,0.00032505,7]
[391909340,1760976638442,-500.0,0.00032563,7]
[391909341,1760976638452,-2620.96595807,0.000326,120]
[391909342,1760976638464,-284.3716132,0.000326,120]
[391909343,1760976638476,-1258.17189083,0.000326,120]
[391909345,1760976638487,-888.2581016,0.000326,120]
[391909347,1760976638498,-639.33214927,0.000326,120]
[391909349,1760976638509,-1281.12729911,0.000326,120]
[391909351,1760976638519,-1449.10932736,0.000326,120]
[391909353,1760976638529,-177.64995754,0.000326,120]
[391909355,1760976638539,-172.38372829,0.000326,120]
[391909357,1760976638548,-207.52113221,0.000326,120]
[391909359,1760976638558,-500.0,0.00032734,7]
[391909361,1760976638567,-500.0,0.0003282,7]
[391909363,1760976638577,-516.34621063,0.00032835,7]
[391909365,1760976638587,-151.0,0.00032877,30]
[391909367,1760976638597,-166.46,0.00032983,2]
[391909369,1760976638607,-500.0,0.00032991,7]
[391909371,1760976638617,-250.0,0.00033128,7]
[391909373,1760976638626,-169.68,0.00033152,30]
[391909375,1760976638636,-727.27550277,0.00033271,2]
[391909377,1760976638646,-402.23,0.00033292,2]
[391909379,1760976638656,-1449.10932736,0.000335,120]
[391909381,1760976638665,-6972.22701208,0.000335,120]
[391909399,1760976638840,-172.38372829,0.000335,120]
[391909401,1760976638849,-207.52113221,0.000335,120]
[391909403,1760976638860,-500.0,0.00033509,7]
[391909405,1760976638869,-830.81459925,0.00033545,2]
[391909407,1760976638884,-1233.0199353,0.00033545,2]
[391909409,1760976638895,-152.63175288,0.00033545,2]
[391909411,1760976638906,-3033.96824712,0.00033546,2]
[391909568,1760976640340,-376.03175288,0.00033546,2]
[391909570,1760976640350,-815.0,0.00033546,2]
[391909572,1760976640360,-1037.8499079,0.00033546,2]
[391909574,1760976640372,-230.1500921,0.00033546,2]
[391909576,1760976640381,-193.30373998,0.00033546,2]
[391909601,1760976640611,-363.69626002,0.00033546,2]
[391909603,1760976640621,-520.78986598,0.00033546,2]
[391909605,1760976640632,-2070.21013402,0.00033546,2]
[391909607,1760976640641,-415.28161273,0.00033546,2]
[391909609,1760976640653,-2239.6704,0.00033546,2]
[391909941,1760976644105,-3785.04798727,0.00033546,2]
[391909943,1760976644116,-150.0,0.00033765,2]
[391909945,1760976644125,-150.0,0.00033765,2]
[391909947,1760976644134,-150.0,0.00033765,2]
[391909949,1760976644143,-150.0,0.00033765,2]
[391909951,1760976644154,-150.0,0.00033765,2]
[391909953,1760976644163,-150.0,0.00033765,2]
[391909955,1760976644172,-150.0,0.00033855,120]
[391909957,1760976644182,-500.0,0.0003386,2]
[391909959,1760976644191,-937.57191147,0.000339,2]
[391909961,1760976644201,-937.57191139,0.00033934,2]
[391909963,1760976644214,-14035.8095804,0.00033954,2]
[391909965,1760976644224,-46007.1926425,0.00033954,2]
[391909967,1760976644233,-2598.851732,0.00033954,2]
[391909969,1760976644242,-1051.7165731,0.00033954,2]
[391909971,1760976644251,-10919.4082131,0.00033954,2]
[391909973,1760976644262,-782.2548259,0.00033954,2]
[391909975,1760976644271,-500.0,0.00033966,2]
[391909977,1760976644280,-937.57191139,0.00033967,2]
[391909979,1760976644289,-1538.95,0.00033999,7]
[391909981,1760976644299,-22900.42576147,0.00034,2]
[391909983,1760976644308,-203.23816086,0.00034,7]
[391909985,1760976644317,-2000.0,0.00034,2]
[391909987,1760976644326,-200.0,0.00034,2]
[391909989,1760976644335,-200.0,0.00034,2]
[391909991,1760976644345,-277.72513394,0.00034,2]
[391909993,1760976644354,-161.94639198,0.00034,5]
[391909995,1760976644365,-1064.55173,0.00034,2]
[391909997,1760976644374,-1000.0,0.00034,2]
[391909999,1760976644383,-937.57191139,0.00034001,2]
[391910001,1760976644393,-200.0,0.00034022,10]
[391910003,1760976644403,-937.57191139,0.00034034,2]
[391910005,1760976644412,-2500.0,0.00034035,2]
[391910007,1760976644421,-937.57191139,0.00034068,2]
[391910009,1760976644430,-1000.0,0.0003408,2]
[391910011,1760976644439,-150.0,0.00034082,2]
[391910013,1760976644453,-150.0,0.00034082,2]
[391910015,1760976644463,-150.0,0.00034082,2]
[391910017,1760976644472,-150.0,0.00034082,2]
[391910019,1760976644481,-150.0,0.00034082,2]
[391910021,1760976644491,-150.0,0.00034082,2]
[391910023,1760976644500,-150.0,0.00034082,2]
[391910025,1760976644509,-201.01884101,0.00034082,2]
[391910027,1760976644518,-150.0,0.00034082,2]
[391910029,1760976644527,-150.0,0.00034082,2]
[391910031,1760976644536,-150.0,0.00034082,2]
[391910033,1760976644546,-150.0,0.00034082,2]
[391910035,1760976644555,-150.0,0.00034082,2]
[391910037,1760976644564,-150.0,0.00034082,2]
[391910039,1760976644574,-150.0,0.00034082,2]
[391910041,1760976644583,-150.0,0.00034082,2]
[391910043,1760976644592,-150.0,0.00034082,2]
[391910045,1760976644602,-150.0,0.00034082,2]
[391910047,1760976644612,-150.0,0.00034082,2]
[391910049,1760976644621,-150.0,0.00034082,2]
[391910052,1760976644631,-150.0,0.00034082,2]
[391910054,1760976644640,-937.57191139,0.00034101,2]
[391910056,1760976644649,-937.57191139,0.00034135,2]
[391910058,1760976644658,-150.0,0.00034137,2]
[391910060,1760976644668,-150.0,0.00034137,2]
[391910062,1760976644677,-150.0,0.00034137,2]
[391910064,1760976644687,-150.0,0.00034137,2]
[391910066,1760976644696,-150.0,0.00034137,2]
[391910068,1760976644706,-150.0,0.00034137,2]
[391910070,1760976644715,-150.0,0.00034137,2]
[391910072,1760976644725,-150.0,0.00034137,2]
[391910074,1760976644734,-150.0,0.00034137,2]
[391910076,1760976644745,-150.0,0.00034137,2]
[391910078,1760976644754,-207.06072452,0.0003414,2]
[391910080,1760976644764,-937.57191139,0.00034168,2]
[391910082,1760976644773,-151.0,0.0003417,7]
[391910084,1760976644783,-152.0,0.0003417,7]
[391910086,1760976644792,-151.0,0.0003417,7]
[391910088,1760976644802,-301.0,0.0003417,7]
[391910090,1760976644811,-151.0,0.0003417,7]
[391910092,1760976644820,-152.0,0.0003417,7]
[391910094,1760976644830,-151.0,0.0003417,7]
[391910096,1760976644839,-151.0,0.0003417,7]
[391910098,1760976644848,-152.0,0.0003417,7]
[391910100,1760976644858,-151.0,0.0003417,7]
[391910102,1760976644868,-151.0,0.0003417,7]
[391910104,1760976644878,-151.0,0.0003417,7]
[391910106,1760976644887,-301.0,0.0003417,7]
[391910108,1760976644897,-151.0,0.0003417,7]
[391910110,1760976644906,-151.0,0.0003417,7]
[391910112,1760976644915,-152.0,0.0003417,7]
[391910114,1760976644924,-152.0,0.0003417,7]
[391910116,1760976644933,-152.0,0.0003417,7]
[391910118,1760976644942,-152.0,0.0003417,7]
[391910120,1760976644951,-297.0,0.0003417,7]
[391910122,1760976644960,-613.64387154,0.00034181,6]
[391910124,1760976644970,-1000.0,0.00034181,2]
[391910126,1760976644980,-170.70321711,0.00034182,2]
[391910128,1760976644990,-822.48833326,0.00034186,7]
[391910130,1760976645000,-150.0,0.00034192,2]
[391910132,1760976645010,-4080.37116659,0.00034192,2]
[391910134,1760976645020,-4080.37116656,0.00034193,2]
[391910136,1760976645031,-500.0,0.00034193,7]
[391910138,1760976645040,-157.91660072,0.00034193,7]
[391910140,1760976645050,-4080.37116656,0.00034194,2]
[391910142,1760976645060,-4080.37116656,0.00034195,2]
[391910144,1760976645070,-4080.37116656,0.00034196,2]
[391910146,1760976645080,-4080.37116656,0.00034198,2]
[391910149,1760976645090,-4080.37116656,0.00034199,2]
[391910151,1760976645101,-4080.37116656,0.000342,2]
[391910153,1760976645113,-4080.37116656,0.00034201,2]
[391910155,1760976645123,-5000.0,0.00034202,2]
[391910157,1760976645133,-937.57191139,0.00034202,2]
[391910159,1760976645143,-170.7032171,0.00034202,2]
[391910161,1760976645152,-4080.37116656,0.00034202,2]
[391910163,1760976645162,-200.0,0.00034246,2]
[391910165,1760976645171,-1225.0,0.00034247,2]
[391910167,1760976645180,-1000.0,0.0003426,2]
[391910168,1760976645190,-1055.9819,0.0003426,2]
[391910171,1760976645200,-1234.0,0.00034261,7]
[391910173,1760976645216,-152.0,0.00034261,7]
[391910174,1760976645225,-1234.0,0.00034261,7]
[391910176,1760976645234,-1234.0,0.00034261,7]
[391910178,1760976645244,-301.0,0.00034261,7]
[391910180,1760976645256,-1234.0,0.00034261,7]
[391910183,1760976645266,-1234.0,0.00034261,7]
[391910185,1760976645276,-1234.0,0.00034261,7]
[391910186,1760976645286,-1234.0,0.00034261,7]
[391910189,1760976645295,-1234.0,0.00034261,7]
[391910191,1760976645306,-1234.0,0.00034261,7]
[391910193,1760976645315,-1234.0,0.00034261,7]
[391910194,1760976645324,-1234.0,0.00034261,7]
[391910197,1760976645334,-1234.0,0.00034261,7]
[391910199,1760976645344,-151.0,0.00034261,7]
[391910201,1760976645354,-151.0,0.00034261,7]
[391910203,1760976645368,-151.0,0.00034261,7]
[391910204,1760976645377,-151.0,0.00034261,7]
[391910206,1760976645387,-151.0,0.00034261,7]
[391910209,1760976645396,-151.0,0.00034261,7]
[391910211,1760976645405,-151.0,0.00034261,7]
[391910212,1760976645414,-151.0,0.00034261,7]
[391910214,1760976645424,-154.02370088,0.00034261,7]
[391910217,1760976645433,-501.22441967,0.00034273,2]
[391910219,1760976645442,-500.0,0.00034273,5]
[391910220,1760976645451,-1538.95,0.00034273,7]
[391910222,1760976645461,-500.0,0.00034281,8]
[391910225,1760976645471,-45395.3217128,0.00034282,3]
[391910227,1760976645480,-2423.3553377,0.00034282,2]
[391910229,1760976645490,-321.83445243,0.00034288,2]
[391910231,1760976645499,-500.0,0.0003429,8]
[391910233,1760976645508,-500.0,0.0003429,8]
[391910235,1760976645517,-6485.04595897,0.0003429,3]
[391910237,1760976645526,-500.0,0.0003429,8]
[391910252,1760976645659,-1000.0,0.00034291,2]
[391910254,1760976645670,-500.0,0.00034291,8]
[391910256,1760976645679,-1000.0,0.00034291,2]
[391910258,1760976645689,-1000.0,0.00034291,2]
[391910260,1760976645699,-1000.0,0.00034291,2]
[391910263,1760976645708,-28728.01458939,0.00034291,31]
[391910265,1760976645718,-194551.378769,0.00034292,3]
[391910267,1760976645727,-197.77806269,0.00034292,2]
[391910269,1760976645737,-197.77806269,0.00034292,2]
[391910271,1760976645746,-150.29,0.00034292,2]
[391910273,1760976645755,-150.29,0.00034292,2]
[391910274,1760976645764,-150.29,0.00034292,2]
[391910276,1760976645773,-150.29,0.00034292,2]
[391910278,1760976645783,-150.29,0.00034292,2]
[391910281,1760976645792,-150.29,0.00034292,2]
[391910283,1760976645801,-150.29,0.00034292,2]
[391910285,1760976645811,-150.29,0.00034292,2]
[391910287,1760976645821,-150.29,0.00034292,2]
[391910289,1760976645830,-150.29,0.00034292,2]
[391910290,1760976645839,-150.29,0.00034292,2]
[391910292,1760976645849,-150.29,0.00034292,2]
[391910294,1760976645858,-151.0,0.00034292,30]
[391910297,1760976645874,-200.621548,0.00034292,30]
[391910299,1760976645884,-151.0,0.00034292,30]
[391910301,1760976645893,-151.0,0.00034292,30]
[391910303,1760976645902,-151.0,0.00034292,30]
[391910305,1760976645911,-151.0,0.00034292,30]
[391910307,1760976645920,-179.558228,0.00034292,30]
[391910309,1760976645929,-151.0,0.00034292,30]
[391910311,1760976645938,-2500.0,0.000343,7]
[391910313,1760976645948,-5800.0,0.000343,2]
[391910315,1760976645957,-152.0,0.000343,120]
[391910317,1760976645966,-5800.0,0.000343,2]
[391910319,1760976645975,-151.0,0.000343,15]
[391910321,1760976645984,-151.0,0.000343,15]
[391910323,1760976645994,-152.801367,0.000343,30]
[391910324,1760976646002,-5800.0,0.000343,2]
[391910326,1760976646012,-200.0,0.000343,120]
[391910328,1760976646022,-171.0,0.000343,2]
[391910330,1760976646031,-500.0,0.00034301,8]
[391910332,1760976646040,-500.0,0.00034301,8]
[391910334,1760976646049,-500.0,0.00034301,8]
[391910336,1760976646058,-2371.78,0.00034301,120]
[391910339,1760976646067,-1538.63856037,0.00034301,2]
[391910342,1760976646079,-1711154.34901275,0.00034302,120]
[391910365,1760976646292,-19000.000002,0.00034302,120]
[391910371,1760976646343,-575.6954453,0.00034302,120]
[391910372,1760976646637,-710.87079523,0.0003348,2]
[391910373,1760976646648,-473.12920477,0.0003348,2]
[391910374,1760976646658,-386.51976,0.00034292,30]
[391910375,1760976646667,-1132.75106522,0.00034302,120]
[391910376,1760976646678,-306.35000132,0.00034302,120]
[391910377,1760976646709,-12243.46588962,0.00034302,120]
[391910378,1760976646728,-3964.48314527,0.00034302,120]
[391910379,1760976646755,-27462.92004973,0.00034302,120]
[391910380,1760976646766,-950.0,0.00034302,120]
[391910381,1760976646778,-22346.0,0.00034302,120]
[391910382,1760976646789,-152267.44094932,0.00034302,120]
[391910383,1760976646804,-206798.96101978,0.00034302,120]
[391910384,1760976646814,-305544.35521723,0.00034302,120]
[391910414,1760976722519,568.42689308,0.00018384,120]
[391910415,1760976729983,500.8199223,0.0003434,30]
[391910418,1760976856583,150.0,0.0003434,30]
[391910419,1760976858896,150.0,0.0003434,30]
[391910420,1760976860317,150.0,0.0003434,30]
[391910421,1760976862166,150.0,0.0003434,30]
[391910422,1760976863604,150.0,0.0003434,30]
[391910424,1760976865795,150.0,0.0003434,30]
[391910425,1760976867118,150.0,0.0003434,30]
[391910431,1760977097194,150.0,0.0003434,30]
[391910432,1760977098828,150.0,0.0003434,30]
[391910433,1760977100864,150.0,0.0003434,30]
[391910435,1760977102801,150.0,0.0003434,30]
[391910436,1760977106112,150.0,0.0003434,30]
[391910437,1760977107787,150.0,0.0003434,30]
[391910438,1760977110684,150.0,0.0003434,30]
[391910439,1760977111785,150.0,0.0003434,30]
[391910440,1760977118519,150.0,0.0003434,30]
[391910441,1760977119982,150.0,0.0003434,30]
[391910442,1760977125448,150.0,0.0003434,30]
[391910443,1760977126717,150.0,0.0003434,30]
[391910450,1760977261698,200.0,0.0003434,120]
[391910459,1760977386450,-295.95,0.00013699,2]
[391910460,1760977386472,-156.60511031,0.00014028,2]
[391910467,1760977426097,217.93,0.00029401,120]
[391910481,1760977523974,-93.39488969,0.00014028,2]
[391910482,1760977523999,-99906.60511031,0.00015,2]
[391910483,1760977526924,-100000.0,0.00015,2]
[391910487,1760977561553,200.0,0.00034341,120]
[391910604,1760977693919,500.0,0.00034341,60]
[391910605,1760977694525,500.0,0.00034341,60]
[391910606,1760977694757,500.0,0.00034341,60]
[391910607,1760977695008,500.0,0.00034341,60]
[391910608,1760977695249,520.75011628,0.00034341,60]
[391910609,1760977708387,1000.0,0.00034341,30]
[391910612,1760977717205,150.20242503,0.00034341,120]
[391910615,1760977721122,1000.0,0.00034341,60]
[391910620,1760977727968,150.0,0.00034341,30]
[391910621,1760977728939,150.0,0.00034341,30]
[391910622,1760977732189,150.0,0.00034341,30]
[391910623,1760977733766,150.0,0.00034341,30]
[391910624,1760977733853,1000.0,0.00034341,120]
[391910625,1760977738425,150.0,0.00034341,30]
[391910626,1760977740527,150.0,0.00034341,30]
[391910627,1760977741851,150.0,0.00034341,30]
[391910628,1760977742985,150.0,0.00034341,30]
[391910629,1760977743992,150.0,0.00034341,30]
[391910630,1760977746651,1000.0,0.00034341,120]
[391910631,1760977747556,711.03770302,0.00034341,120]
[391910632,1760977747782,150.0,0.00034341,30]
[391910633,1760977749290,150.0,0.00034341,30]
[391910634,1760977750578,150.0,0.00034341,30]
[391910635,1760977753294,150.0,0.00034341,30]
[391910638,1760977759329,1000.0,0.00034341,60]
[391910645,1760977760837,150.0,0.00034341,30]
[391910660,1760977764791,150.0,0.00034341,30]
[391910663,1760977769163,150.0,0.00034341,30]
[391910664,1760977772111,1000.0,0.00034341,60]
[391910665,1760977784823,1000.0,0.00034341,30]
[391910666,1760977784901,150.0,0.00034341,30]
[391910667,1760977786164,150.0,0.00034341,30]
[391910668,1760977790550,150.0,0.00034341,30]
[391910669,1760977791761,150.0,0.00034341,30]
[391910670,1760977797551,1000.0,0.00034341,30]
[391910671,1760977798241,150.0,0.00034341,30]
[391910672,1760977799296,150.0,0.00034341,30]
[391910673,1760977801287,150.0,0.00034341,30]
[391910674,1760977801951,150.0,0.00034341,30]
[391910675,1760977803200,151.5,0.00034341,30]
[391910676,1760977803235,160.53,0.00034341,30]
[391910677,1760977803268,248.92,0.00034341,30]
[391910678,1760977803320,150.0,0.00034341,30]
[391910679,1760977804473,150.0,0.00034341,30]
[391910680,1760977806135,150.0,0.00034341,30]
[391910685,1760977808647,150.0,0.00034341,30]
[391910690,1760977810298,1000.0,0.00034341,30]
[391910716,1760977823037,1000.0,0.00034341,30]
[391910744,1760977832222,-255.51611901,0.000135,2]
[391910747,1760977832232,-1249.11710092,0.0001485,2]
[391910749,1760977832243,-907.61637236,0.000149,2]
[391910750,1760977832255,-99.02346084,0.000149,2]
[391910751,1760977832266,-217.56063084,0.000149,2]
[391910752,1760977832276,-690.42200907,0.00014908,2]
[391910753,1760977832287,-250.0,0.00014931,2]
[391910754,1760977832297,-195.0,0.00014954,2]
[391910755,1760977832306,-195.0,0.00014983,2]
[391910756,1760977832317,-220.16131374,0.0001499,2]
[391910757,1760977832329,-1048.73868626,0.0001499,2]
[391910758,1760977832340,-1268.9,0.0001499,2]
[391910759,1760977832351,-460.5416205,0.00014999,2]
[391910760,1760977832360,-218.0,0.00014999,2]
[391910761,1760977832369,-976.21969324,0.00014999,2]
[391910762,1760977832382,-223.78030676,0.00014999,2]
[391910763,1760977832393,-246.77457723,0.00015,2]
[391910764,1760977832403,-701.31563544,0.00015,2]
[391910765,1760977832416,-2273.73611553,0.00015,2]
[391910766,1760977832429,-1090.0,0.00015,2]
[391910767,1760977832441,-1297.94830182,0.00015,2]
[391910768,1760977832453,-566.99505982,0.00015,2]
[391910769,1760977832476,-544.59405,0.00015,2]
[391910770,1760977832533,-0.80428345,0.00015,2]
[391910771,1760977832551,-1715.07408873,0.00015,2]
[391910772,1760977832562,-279.16162405,0.00015,2]
[391910774,1760977832574,-251.6559542,0.00015,2]
[391910801,1760977835770,1000.0,0.00034341,60]
[391910804,1760977838282,-3239.41570416,0.00015,2]
[391910805,1760977838295,-305.24520198,0.00015,2]
[391910806,1760977838307,-273.20310905,0.00015,2]
[391910991,1760977840258,-19942.29086535,0.00015,2]
[391910994,1760977840429,-1117.13091673,0.00015,2]
[391910995,1760977840445,-5143.26582598,0.00015,2]
[391910996,1760977840458,-598399.62450609,0.00015,2]
[391910997,1760977840467,-710688.46553315,0.00015,2]
[391910998,1760977840478,-202.88841952,0.00015008,2]
[391911000,1760977840488,-172.49,0.00015017,2]
[391911001,1760977840498,-151.0,0.00015379,2]
[391911002,1760977840509,-151.0,0.00015387,2]
[391911003,1760977840519,-151.0,0.00015393,2]
[391911004,1760977840530,-684.14270133,0.00015636,2]
[391911005,1760977840539,-300.0,0.00016399,2]
[391911007,1760977840549,-195.0,0.00016399,2]
[391911008,1760977840558,-250.0,0.00016399,2]
[391911009,1760977840571,-195.0,0.00016399,2]
[391911010,1760977840581,-4000.0,0.00016499,2]
[391911011,1760977840591,-273.0,0.00016499,2]
[391911012,1760977840602,-2500.0,0.000165,2]
[391911013,1760977840612,-250.0,0.000165,2]
[391911014,1760977840623,-300.0,0.000165,2]
[391911015,1760977840638,-190.96,0.00016712,2]
[391911016,1760977840648,-500.0,0.000169,2]
[391911017,1760977840658,-1006.63983316,0.00017045,2]
[391911018,1760977840670,-690.42200899,0.00017052,2]
[391911019,1760977840683,-1247.21924141,0.00018,2]
[391911020,1760977840693,-7168.94495752,0.00018,2]
[391911021,1760977840704,-250.0,0.00018683,2]
[391911022,1760977840716,-150.26,0.000188,2]
[391911023,1760977840728,-1006.63983316,0.00019189,2]
[391911024,1760977840738,-690.42200899,0.00019196,2]
[391911025,1760977840749,-501.76089721,0.00019973,2]
[391911026,1760977840760,-54840.71272525,0.0002,5]
[391911028,1760977840772,-33204.33219623,0.0002,2]
[391911029,1760977840782,-295.95,0.00020187,2]
[391911030,1760977840792,-1000.0,0.00020277,4]
[391911031,1760977840802,-1006.63983316,0.00021334,2]
[391911032,1760977840812,-690.42200899,0.00021339,2]
[391911033,1760977840823,-15914.90960113,0.000215,2]